bitfinex/quotes_BTCUSD_20251031
["timestamp","ask_amount","ask_price","bid_price","bid_amount"]
[1761943533757,0.009,109820.0,109810.0,0.07212245]
[1761943534193,0.009,109820.0,109810.0,0.25425522]
[1761943534405,0.009,109820.0,109810.0,0.07212245]
[1761943534620,0.009,109820.0,109810.0,0.25425522]
[1761943534829,0.20540725,109820.0,109810.0,0.07212245]
[1761943535464,0.02329106,109820.0,109810.0,0.07212245]
[1761943535666,0.20540725,109820.0,109810.0,0.07212245]
[1761943536311,0.02329106,109820.0,109810.0,0.07212245]
[1761943536537,0.20540725,109820.0,109810.0,0.07212245]
[1761943536762,0.63294086,109830.0,109820.0,0.19211618]
[1761943536763,0.00013192,109830.0,109820.0,0.19211618]
[1761943536981,0.00013192,109830.0,109820.0,1.49348228]
[1761943537205,0.00013192,109830.0,109820.0,1.51699228]
[1761943537712,0.00013192,109830.0,109820.0,1.51499228]
[1761943539222,0.00013192,109830.0,109820.0,1.51799228]
[1761943540226,1e-08,109840.0,109830.0,2.62279186]
[1761943540432,1e-08,109840.0,109830.0,4.00045533]
[1761943540643,1e-08,109850.0,109840.0,2.2569178]
[1761943541031,1e-08,109850.0,109840.0,1.8669591]
[1761943541253,1e-08,109850.0,109840.0,2.33185008]
[1761943542519,1e-08,109850.0,109840.0,1.90314138]
[1761943542736,1e-08,109850.0,109840.0,1.90414138]
[1761943542966,1e-08,109850.0,109840.0,2.33785008]
[1761943543391,1e-08,109850.0,109840.0,3.19526748]
[1761943544641,0.0002,109880.0,109870.0,0.55821559]
[1761943544836,0.00034463,109880.0,109870.0,1.12352166]
[1761943545056,0.00034463,109880.0,109870.0,1.55223036]
[1761943545265,0.00034463,109880.0,109870.0,1.55587673]
[1761943545479,0.00034463,109880.0,109870.0,1.18381711]
[1761943545978,0.00034463,109880.0,109870.0,1.18481711]
[1761943546855,0.00034463,109880.0,109870.0,0.66327705]
[1761943547056,0.00034463,109880.0,109870.0,0.32327705]
[1761943547474,0.00034463,109880.0,109870.0,0.80863483]
[1761943547918,0.00167528,109880.0,109870.0,0.80863483]
[1761943548770,0.77119567,109920.0,109870.0,0.80863483]
[1761943548771,0.00364637,109930.0,109910.0,0.00999999]
[1761943549017,2.0,109940.0,109930.0,0.21811145]
[1761943549233,2.00004821,109940.0,109930.0,0.02664]
[1761943549444,4.821e-05,109940.0,109930.0,0.25144983]
[1761943550735,4.821e-05,109940.0,109930.0,0.3429872]
[1761943551803,0.00504821,109940.0,109930.0,0.3429872]
[1761943552696,0.00504821,109940.0,109930.0,0.82834498]
[1761943553551,0.00504821,109940.0,109930.0,0.3429872]
[1761943557120,0.05547821,109940.0,109930.0,0.02733588]
[1761943557334,0.03230821,109940.0,109930.0,0.04287588]
[1761943557547,0.00637777,109940.0,109930.0,0.22480983]
[1761943557768,0.00637777,109940.0,109930.0,0.04287588]
[1761943557997,0.00637777,109940.0,109930.0,0.06263588]
[1761943558857,0.20344517,109940.0,109930.0,0.02733588]
[1761943559076,0.22661517,109940.0,109930.0,0.02733588]
[1761943559262,0.23503466,109940.0,109930.0,0.02733588]
[1761943560178,0.24930341,109940.0,109930.0,0.02733588]
[1761943560423,2.24930341,109940.0,109930.0,0.02733588]
[1761943560659,0.18193395,109930.0,109920.0,0.006]
[1761943560892,0.18193395,109930.0,109910.0,0.00688]
[1761943560893,0.23846899,109930.0,109910.0,0.00688]
[1761943561122,0.1971005,109920.0,109910.0,0.00688]
[1761943561329,0.21463531,109930.0,109910.0,0.00688]
[1761943561330,0.18193395,109930.0,109920.0,0.01554]
[1761943561550,2.20551277,109930.0,109920.0,0.01554]
[1761943561771,2.20651277,109930.0,109920.0,0.01554]
[1761943561983,2.1819505,109920.0,109910.0,0.05398522]
[1761943562196,0.1819505,109920.0,109910.0,0.05398522]
[1761943562406,0.1819505,109920.0,109910.0,0.06952522]
[1761943562620,0.1971005,109920.0,109910.0,0.04976522]
[1761943563133,0.1971005,109920.0,109910.0,0.03422522]
[1761943563357,0.22870982,109920.0,109910.0,0.03422522]
[1761943563596,0.18196706,109910.0,109900.0,0.00688]
[1761943563848,0.2506121,109910.0,109900.0,0.00688]
[1761943564103,0.23239706,109910.0,109900.0,0.00688]
[1761943564377,0.24084374,109910.0,109900.0,0.00688]
[1761943564593,0.00844668,109910.0,109900.0,0.02242]
[1761943564821,0.00844668,109910.0,109900.0,0.04218]
[1761943565048,0.19711706,109910.0,109900.0,0.00688]
[1761943565281,0.22873544,109910.0,109900.0,0.00688]
[1761943565521,0.02359838,109910.0,109900.0,0.02342]
[1761943565730,0.00844838,109910.0,109900.0,0.02342]
[1761943566410,0.19041544,109910.0,109900.0,0.02342]
[1761943566652,0.20556544,109910.0,109900.0,0.02342]
[1761943570456,0.00844838,109910.0,109900.0,0.22519362]
[1761943570882,0.00844838,109910.0,109900.0,0.7105514]
[1761943571093,0.00844838,109910.0,109900.0,0.22519362]
[1761943571507,0.00844838,109910.0,109900.0,0.25254074]
[1761943571720,0.00844838,109910.0,109900.0,0.22519362]
[1761943571926,0.36317,109930.0,109900.0,0.22519362]
[1761943572136,2.0,109920.0,109910.0,0.04585]
[1761943572339,2.0,109920.0,109910.0,0.22781706]
[1761943572545,0.02734712,109920.0,109910.0,0.22781706]
[1761943572756,0.20929762,109920.0,109910.0,0.04585]
[1761943572980,0.02734712,109920.0,109910.0,0.22781706]
[1761943573580,0.04161883,109920.0,109910.0,0.22781706]
[1761943573789,0.04261883,109920.0,109910.0,0.22781706]
[1761943573999,0.04261883,109920.0,109910.0,0.04585]
[1761943574210,0.22456933,109920.0,109910.0,0.04585]
[1761943574419,0.04261883,109920.0,109910.0,0.33755113]
[1761943574628,0.04261883,109920.0,109910.0,0.31935443]
[1761943575888,0.04261883,109920.0,109910.0,0.13738737]
[1761943576332,0.04350537,109920.0,109910.0,0.13738737]
[1761943576543,0.22545587,109920.0,109910.0,0.13738737]
[1761943576956,0.21346875,109920.0,109910.0,0.11314737]
[1761943577164,0.19919704,109920.0,109910.0,0.11314737]
[1761943577380,0.23482704,109920.0,109900.0,0.02972]
[1761943577591,0.2339405,109920.0,109900.0,0.00688]
[1761943577804,0.00066496,109910.0,109900.0,0.00688]
[1761943578016,0.18263202,109910.0,109900.0,0.02972]
[1761943578299,0.20954202,109910.0,109900.0,0.02299]
[1761943578562,0.02757496,109910.0,109900.0,0.02299]
[1761943578806,0.00066496,109910.0,109900.0,0.22894362]
[1761943579867,0.00066496,109910.0,109900.0,0.22994362]
[1761943580307,0.01493702,109910.0,109900.0,0.22994362]
[1761943583426,0.01493702,109910.0,109900.0,0.98078262]
[1761943584078,0.02345211,109910.0,109900.0,0.98078262]
[1761943584504,0.01493702,109910.0,109900.0,0.98078262]
[1761943585162,0.01493702,109910.0,109900.0,1.32078262]
[1761943586331,0.02346171,109910.0,109900.0,1.32078262]
[1761943589227,0.01493702,109910.0,109900.0,1.32078262]
[1761943590538,0.00066496,109910.0,109900.0,1.32078262]
[1761943590776,0.00066496,109910.0,109900.0,1.3569649]
[1761943593544,0.00066496,109910.0,109900.0,1.36696489]
[1761943594198,0.00066496,109910.0,109900.0,1.36596489]
[1761943594644,0.00066496,109910.0,109900.0,1.36996489]
[1761943594872,0.00066496,109910.0,109900.0,1.37196489]
[1761943595086,0.00066496,109910.0,109900.0,1.36796489]
[1761943595281,0.00066496,109910.0,109900.0,1.37396489]
[1761943599383,0.00066496,109910.0,109900.0,1.05000071]
[1761943601213,0.00066496,109910.0,109900.0,1.04000072]
[1761943601409,0.00066496,109910.0,109900.0,1.05000071]
[1761943605993,0.00066496,109910.0,109900.0,1.11499236]
[1761943606393,0.00066496,109910.0,109900.0,1.04000072]
[1761943606801,0.00066496,109910.0,109900.0,1.05000071]
[1761943607011,0.00066496,109910.0,109900.0,1.04000072]
[1761943607432,0.00066496,109910.0,109900.0,1.05000071]
[1761943607843,0.00066496,109910.0,109900.0,1.04000072]
[1761943609703,0.00066496,109910.0,109900.0,0.57694362]
[1761943609931,0.00066496,109910.0,109900.0,0.23694362]
[1761943610580,0.00066496,109910.0,109900.0,0.22894362]
[1761943611005,0.00066496,109910.0,109900.0,0.23294362]
[1761943612072,0.01493543,109910.0,109900.0,0.23294362]
[1761943614076,0.01493543,109910.0,109900.0,0.22994362]
[1761943614291,0.01493543,109910.0,109900.0,0.22894362]
[1761943615242,0.01493543,109910.0,109900.0,0.22994362]
[1761943615878,0.01493543,109910.0,109900.0,0.04796]
[1761943616324,0.01493543,109910.0,109900.0,0.22994362]
[1761943616531,0.01493543,109910.0,109900.0,0.04796]
[1761943616940,0.21202249,109910.0,109900.0,0.02399]
[1761943617596,0.22432249,109910.0,109900.0,0.02399]
[1761943617787,0.04235543,109910.0,109900.0,0.20597362]
[1761943617994,0.01493543,109910.0,109900.0,0.23086362]
[1761943621314,0.03005543,109910.0,109900.0,0.20597362]
[1761943621762,0.03005543,109910.0,109900.0,0.23086362]
[1761943621968,0.01493543,109910.0,109900.0,0.23086362]
[1761943622388,0.00066496,109910.0,109900.0,0.23086362]
[1761943625653,0.01493657,109910.0,109900.0,0.65773844]
[1761943626485,0.01493657,109910.0,109900.0,0.99773844]
[1761943626833,0.00066496,109910.0,109900.0,1.03392072]
[1761943627669,0.00066496,109910.0,109900.0,1.03292072]
[1761943627880,0.00066496,109910.0,109900.0,0.6070459]
[1761943628089,0.00066496,109910.0,109900.0,1.03392072]
[1761943628282,0.00066496,109910.0,109900.0,0.69392072]
[1761943628515,0.00066496,109910.0,109900.0,0.69292072]
[1761943628698,0.00066496,109910.0,109900.0,0.23286362]
[1761943629039,0.00066496,109910.0,109900.0,0.05088]
[1761943629232,0.00066496,109910.0,109900.0,0.23386362]
[1761943629969,0.00066496,109910.0,109900.0,0.23286362]
[1761943630621,0.00066496,109910.0,109900.0,0.22986362]
[1761943631031,0.00066496,109910.0,109900.0,0.23086362]
[1761943631520,0.18263202,109910.0,109900.0,0.04888]
[1761943631729,0.00066496,109910.0,109900.0,0.23086362]
[1761943632144,0.02742,109920.0,109910.0,0.01516]
[1761943632358,0.23322797,109920.0,109910.0,0.02657]
[1761943632566,0.24834797,109920.0,109910.0,0.01141]
[1761943632797,0.01427125,109920.0,109910.0,0.80621823]
[1761943633021,0.01427125,109920.0,109910.0,0.78802153]
[1761943633232,0.01427125,109920.0,109910.0,0.75183925]
[1761943634091,0.01627125,109920.0,109910.0,0.75183925]
[1761943634522,0.01427125,109920.0,109910.0,0.75183925]
[1761943634949,0.01427125,109920.0,109910.0,0.75483925]
[1761943635371,0.01427125,109920.0,109910.0,0.75583925]
[1761943636195,0.01427125,109920.0,109910.0,0.32896443]
[1761943636869,0.04222125,109920.0,109910.0,0.03057]
[1761943637090,0.04222125,109920.0,109910.0,0.21253706]
[1761943637524,0.04222125,109920.0,109910.0,0.03057]
[1761943637766,0.04244286,109920.0,109910.0,0.02757]
[1761943637981,0.67428484,109920.0,109910.0,0.01241]
[1761943638209,0.04244286,109920.0,109910.0,0.20879706]
[1761943638635,0.02646286,109920.0,109910.0,0.23337706]
[1761943639908,0.01449286,109920.0,109910.0,0.23337706]
[1761943640672,0.00022161,109920.0,109910.0,0.23337706]
[1761943641069,0.00022161,109920.0,109910.0,0.75202591]
[1761943643729,0.00022161,109920.0,109910.0,0.32491443]
[1761943644182,0.02740161,109920.0,109910.0,0.30033443]
[1761943644404,0.02740161,109920.0,109910.0,0.11836737]
[1761943644623,0.45451309,109920.0,109910.0,0.30033443]
[1761943645059,0.02740161,109920.0,109910.0,0.30033443]
[1761943648039,0.02740161,109920.0,109910.0,0.20879706]
[1761943649038,0.02740161,109920.0,109910.0,0.23337706]
[1761943649706,0.02740161,109920.0,109910.0,0.02683]
[1761943650360,0.02740161,109920.0,109910.0,0.20879706]
[1761943651212,0.00022161,109920.0,109910.0,0.75202591]
[1761943652726,0.02740161,109920.0,109910.0,0.02683]
[1761943652968,0.01234161,109920.0,109910.0,0.23337706]
[1761943653194,0.02661225,109920.0,109910.0,0.05141]
[1761943653970,0.02661225,109920.0,109910.0,0.23337706]
[1761943654266,0.04167225,109920.0,109910.0,0.02683]
[1761943654478,0.04167225,109920.0,109910.0,0.2330394]
[1761943654692,0.02661225,109920.0,109910.0,0.2330394]
[1761943657678,0.02661225,109920.0,109910.0,0.05107234]
[1761943658127,0.02661225,109920.0,109910.0,0.2330394]
[1761943658368,0.01449225,109920.0,109910.0,0.2330394]
[1761943658796,0.01449225,109920.0,109910.0,0.32457677]
[1761943662735,0.18196706,109910.0,109900.0,0.00688]
[1761943662982,0.62413854,109910.0,109900.0,0.0223]
[1761943663200,0.63658854,109910.0,109900.0,0.0223]
[1761943663829,0.45462148,109910.0,109900.0,0.0223]
[1761943664089,0.45462148,109910.0,109900.0,0.0233]
[1761943664299,0.63658854,109910.0,109900.0,0.0233]
[1761943664509,0.63658854,109910.0,109900.0,0.0223]
[1761943664716,0.63658854,109910.0,109900.0,0.0253]
[1761943665141,0.63658854,109910.0,109900.0,0.0223]
[1761943666125,0.45462148,109910.0,109900.0,0.0223]
[1761943666346,0.46889307,109910.0,109900.0,0.0223]
[1761943666778,0.65086013,109910.0,109900.0,0.0223]
[1761943667893,0.67563013,109910.0,109900.0,0.0223]
[1761943668330,0.65086013,109910.0,109900.0,0.0223]
[1761943669402,0.67563013,109910.0,109900.0,0.00688]
[1761943669867,0.06655159,109910.0,109900.0,0.02306]
[1761943670084,0.04178159,109910.0,109900.0,0.02306]
[1761943670515,0.22374865,109910.0,109900.0,0.02306]
[1761943670988,0.67563013,109910.0,109900.0,0.02306]
[1761943671438,0.42711148,109910.0,109900.0,0.02306]
[1761943671653,0.63855041,109910.0,109900.0,0.02306]
[1761943671874,0.62899854,109910.0,109900.0,0.02306]
[1761943672756,0.01992,109910.0,109900.0,0.20504362]
[1761943672980,2.0,109910.0,109900.0,0.2278208]
[1761943673863,2.0,109910.0,109900.0,0.65493228]
[1761943674792,2.0,109910.0,109900.0,0.2278208]
[1761943676532,0.01449348,109920.0,109910.0,0.18196706]
[1761943676748,0.01449348,109920.0,109910.0,0.76980261]
[1761943676973,0.01449348,109920.0,109910.0,0.75160591]
[1761943677664,0.01649348,109920.0,109910.0,0.75160591]
[1761943678064,0.01449348,109920.0,109910.0,0.75160591]
[1761943681777,0.01449348,109920.0,109910.0,1.99201114]
[1761943681994,0.00022161,109920.0,109910.0,1.66722491]
[1761943682913,4.821e-05,109940.0,109930.0,0.21811623]
[1761943683158,4.821e-05,109940.0,109930.0,0.76497508]
[1761943683388,4.821e-05,109940.0,109930.0,0.78775508]
[1761943684537,4.821e-05,109940.0,109930.0,1.21486656]
[1761943684742,4.821e-05,109940.0,109930.0,0.78775508]
[1761943685211,4.821e-05,109940.0,109930.0,1.21486656]
[1761943685445,4.821e-05,109940.0,109930.0,0.78775508]
[1761943685673,4.821e-05,109940.0,109930.0,0.7515728]
[1761943688768,0.00049131,109940.0,109930.0,0.7515728]
[1761943690404,0.00049131,109940.0,109930.0,0.14252737]
[1761943690922,0.01569131,109940.0,109930.0,0.05099]
[1761943691070,0.63684019,109940.0,109930.0,0.02821]
[1761943691287,0.02781131,109940.0,109930.0,0.02821]
[1761943691486,0.02781131,109940.0,109930.0,0.21014395]
[1761943691898,0.02781131,109940.0,109930.0,0.02821]
[1761943692390,0.02781131,109940.0,109930.0,0.23292395]
[1761943693232,0.00049131,109940.0,109930.0,0.23292395]
[1761943693604,0.00049131,109940.0,109930.0,0.66003543]
[1761943693805,0.00049131,109940.0,109930.0,0.7515728]
[1761943696955,0.00049131,109940.0,109930.0,0.7267728]
[1761943697160,0.00049131,109940.0,109930.0,0.7419828]
[1761943697363,0.00049131,109940.0,109930.0,0.74172901]
[1761943699248,0.00049131,109940.0,109930.0,0.31487132]
[1761943699526,0.01649131,109940.0,109930.0,0.01862]
[1761943699760,0.02858131,109940.0,109930.0,0.01862]
[1761943699967,0.23431871,109940.0,109930.0,0.01862]
[1761943700188,0.21049871,109940.0,109930.0,0.01862]
[1761943700670,0.04284955,109940.0,109930.0,0.01862]
[1761943700885,0.22476695,109940.0,109930.0,0.01862]
[1761943701296,0.04284955,109940.0,109930.0,0.20055395]
[1761943701474,0.04284955,109940.0,109930.0,0.01862]
[1761943701820,0.22476695,109940.0,109930.0,0.01862]
[1761943702049,0.24858695,109940.0,109920.0,0.21850994]
[1761943702270,0.24814596,109940.0,109920.0,0.19397994]
[1761943702484,0.24814596,109940.0,109920.0,0.21850994]
[1761943702698,0.06622645,109940.0,109930.0,0.19764395]
[1761943702921,0.04240645,109940.0,109930.0,0.20096395]
[1761943703130,0.04440645,109940.0,109930.0,0.20096395]
[1761943703550,0.04284955,109940.0,109930.0,0.20096395]
[1761943703760,0.04284955,109940.0,109930.0,0.01903]
[1761943703973,0.22476695,109940.0,109930.0,0.01903]
[1761943704183,0.24858695,109940.0,109930.0,0.01903]
[1761943704427,0.25058695,109940.0,109930.0,0.01903]
[1761943704972,0.06866955,109940.0,109930.0,0.01903]
[1761943705155,0.25058695,109940.0,109930.0,0.01903]
[1761943705598,0.06866955,109940.0,109930.0,0.20096395]
[1761943705812,0.04284955,109940.0,109930.0,0.20096395]
[1761943706025,0.02684955,109940.0,109930.0,0.22549395]
[1761943706241,0.02884955,109940.0,109930.0,0.22549395]
[1761943706848,0.01675955,109940.0,109930.0,0.22549395]
[1761943707885,0.01675955,109940.0,109930.0,0.04356]
[1761943708754,0.18440871,109940.0,109930.0,0.04356]
[1761943709597,0.23631871,109940.0,109930.0,0.00332]
[1761943709819,0.23631871,109940.0,109920.0,0.19397798]
[1761943710027,0.25014913,109940.0,109920.0,0.21850798]
[1761943710240,0.01622157,109930.0,109920.0,0.20968798]
[1761943710459,0.00022157,109930.0,109920.0,0.20968798]
[1761943710669,0.00022157,109930.0,109920.0,0.23421798]
[1761943711938,0.01449042,109930.0,109920.0,0.23421798]
[1761943715354,0.01449042,109930.0,109920.0,0.05227]
[1761943715626,0.24833437,109930.0,109910.0,0.03656]
[1761943715842,0.22825554,109920.0,109900.0,0.18886241]
[1761943716107,0.2338605,109920.0,109900.0,0.00688]
[1761943716278,0.23386089,109920.0,109900.0,0.21339275]
[1761943716703,0.23386089,109920.0,109910.0,0.01571]
[1761943716933,0.05191,109920.0,109910.0,0.02762]
[1761943717119,0.02809,109920.0,109910.0,0.20958706]
[1761943718000,2.0,109920.0,109910.0,0.32565443]
[1761943722820,0.016,109920.0,109910.0,0.30112443]
[1761943723035,0.02809,109920.0,109910.0,0.20958706]
[1761943723245,0.01209,109920.0,109910.0,0.20958706]
[1761943723469,2.06708241,109930.0,109920.0,0.1819505]
[1761943723681,2.04979042,109930.0,109920.0,0.1819505]
[1761943723886,2.06576042,109930.0,109920.0,0.1819505]
[1761943724092,2.04255042,109930.0,109920.0,0.2087505]
[1761943724756,0.01649042,109930.0,109920.0,0.2327405]
[1761943726083,0.00222157,109930.0,109920.0,0.2327405]
[1761943726534,0.5138129,109960.0,109950.0,0.42685769]
[1761943726535,2.0,109960.0,109950.0,0.42685769]
[1761943726780,2.00048187,109960.0,109950.0,0.04788]
[1761943726982,2.04776187,109960.0,109940.0,0.00856]
[1761943727189,2.04776187,109960.0,109940.0,0.20580594]
[1761943727190,0.02845,109950.0,109940.0,0.20580594]
[1761943727365,0.02845,109950.0,109940.0,0.22979594]
[1761943728351,0.95864956,109960.0,109950.0,0.18190086]
[1761943728580,2.00858187,109960.0,109950.0,0.19523086]
[1761943728786,2.02455187,109960.0,109950.0,0.20670086]
[1761943728972,2.03881858,109960.0,109950.0,0.20670086]
[1761943729636,2.03981858,109960.0,109950.0,0.20670086]
[1761943729961,2.04281858,109960.0,109950.0,0.20670086]
[1761943730165,2.04281858,109960.0,109950.0,0.23069086]
[1761943730166,0.01874858,109960.0,109950.0,0.23069086]
[1761943730584,0.01874858,109960.0,109950.0,0.74908592]
[1761943730788,0.01874858,109960.0,109950.0,0.32222823]
[1761943731208,0.01574858,109960.0,109950.0,0.32222823]
[1761943731408,0.01474858,109960.0,109950.0,0.32222823]
[1761943731608,0.01474858,109960.0,109950.0,0.32422823]
[1761943732408,0.01541309,109960.0,109950.0,0.32422823]
[1761943736682,0.01541309,109960.0,109950.0,0.35394103]
[1761943739540,0.01541309,109960.0,109950.0,0.26440366]
[1761943740691,0.00114638,109960.0,109950.0,0.26440366]
[1761943741380,0.72367151,109970.0,109950.0,0.26440366]
[1761943741583,0.02407,109960.0,109950.0,0.0585128]
[1761943741793,0.04728,109960.0,109950.0,0.0317128]
[1761943742196,0.02407,109960.0,109950.0,0.0450428]
[1761943742642,0.20595432,109960.0,109950.0,0.0450428]
[1761943742805,0.63281201,109960.0,109950.0,0.0450428]
[1761943743012,0.20595432,109960.0,109950.0,0.0450428]
[1761943743219,0.63281201,109960.0,109950.0,0.0450428]
[1761943743590,0.65602201,109960.0,109950.0,0.0470428]
[1761943743939,0.67028861,109960.0,109950.0,0.0470428]
[1761943744140,0.65602201,109960.0,109950.0,0.0317128]
[1761943744802,0.65602201,109960.0,109950.0,0.0297128]
[1761943744803,0.6702935,109960.0,109950.0,0.0297128]
[1761943745214,0.65602201,109960.0,109950.0,0.0297128]
[1761943745966,0.72371751,109970.0,109950.0,0.0805028]
[1761943746198,2.0,109960.0,109950.0,0.0651728]
[1761943746612,2.0,109960.0,109950.0,0.26240366]
[1761943747032,0.01426662,109960.0,109950.0,0.0805028]
[1761943747241,0.01426662,109960.0,109950.0,0.26240366]
[1761943748507,2.0,109960.0,109950.0,0.26240366]
[1761943751783,0.01426652,109960.0,109950.0,0.26240366]
[1761943751980,0.01426652,109960.0,109950.0,0.0805028]
[1761943752202,0.19615084,109960.0,109950.0,0.0805028]
[1761943752670,0.01426652,109960.0,109950.0,0.0805028]
[1761943752887,0.19615084,109960.0,109950.0,0.0805028]
[1761943754674,0.21962084,109960.0,109950.0,0.0565128]
[1761943754884,0.21962084,109960.0,109950.0,0.0411828]
[1761943755066,0.21962084,109960.0,109950.0,0.0563428]
[1761943755616,0.64647853,109960.0,109950.0,0.0563428]
[1761943756031,0.21962084,109960.0,109950.0,0.0563428]
[1761943757187,0.66999853,109960.0,109950.0,0.0297128]
[1761943757401,2.67853429,109960.0,109950.0,0.0297128]
[1761943757838,2.2516766,109960.0,109950.0,0.0297128]
[1761943758044,2.67853429,109960.0,109950.0,0.0297128]
[1761943759337,3.1055118,109960.0,109950.0,0.0297128]
[1761943759957,3.4455118,109960.0,109950.0,0.0297128]
[1761943760172,3.48224865,109960.0,109950.0,0.0297128]
[1761943760804,3.52348645,109960.0,109950.0,0.0297128]
[1761943761243,3.50721993,109960.0,109950.0,0.0297128]
[1761943761420,3.46798213,109960.0,109950.0,0.0297128]
[1761943761635,3.46998213,109960.0,109950.0,0.0297128]
[1761943761850,3.48525509,109960.0,109950.0,0.0297128]
[1761943764534,3.47391575,109960.0,109950.0,0.0297128]
[1761943764741,3.49949949,109960.0,109950.0,0.0297128]
[1761943767512,3.48523179,109960.0,109950.0,0.0297128]
[1761943767720,3.46176179,109960.0,109950.0,0.0297128]
[1761943767930,3.47719179,109960.0,109950.0,0.0297128]
[1761943770361,3.49145949,109960.0,109950.0,0.0297128]
[1761943774205,3.47440366,109960.0,109950.0,0.0297128]
[1761943775096,3.47440224,109960.0,109950.0,0.0297128]
[1761943777530,3.46013454,109960.0,109950.0,0.0297128]
[1761943777730,3.45160805,109960.0,109950.0,0.0297128]
[1761943777984,3.46013493,109960.0,109950.0,0.0297128]
[1761943778642,3.47718962,109960.0,109950.0,0.0297128]
[1761943780807,3.49145727,109960.0,109950.0,0.0297128]
[1761943781037,3.47718962,109960.0,109950.0,0.0297128]
[1761943784032,3.49145724,109960.0,109950.0,0.0297128]
[1761943786278,2.63762204,109960.0,109950.0,0.0297128]
[1761943786496,2.41678772,109960.0,109950.0,0.0822728]
[1761943786738,3.02558964,109960.0,109950.0,0.0822728]
[1761943786951,2.84370532,109960.0,109950.0,0.0822728]
[1761943787196,2.41678772,109960.0,109950.0,0.0822728]
[1761943787417,2.84370532,109960.0,109950.0,0.0822728]
[1761943787845,3.01131668,109960.0,109950.0,0.0822728]
[1761943788678,2.58439908,109960.0,109950.0,0.0822728]
[1761943788887,2.40251476,109960.0,109950.0,0.26417366]
[1761943789103,2.04546007,109960.0,109950.0,0.26417366]
[1761943789335,2.0257945,109960.0,109950.0,0.26417366]
[1761943789733,2.01152688,109960.0,109950.0,0.26417366]
[1761943792471,2.01152688,109960.0,109950.0,0.0822728]
[1761943792669,2.1934112,109960.0,109950.0,0.0822728]
[1761943793523,2.6203288,109960.0,109950.0,0.0822728]
[1761943793730,2.43844448,109960.0,109950.0,0.0822728]
[1761943793933,2.01152688,109960.0,109950.0,0.0822728]
[1761943794355,2.01152688,109960.0,109950.0,0.26417366]
[1761943797407,2.02579386,109960.0,109950.0,0.0822728]
[1761943797660,2.01152688,109960.0,109950.0,0.0822728]
[1761943799790,2.43844448,109960.0,109950.0,0.0822728]
[1761943800205,2.45271146,109960.0,109950.0,0.0822728]
[1761943800423,2.63459578,109960.0,109950.0,0.0822728]
[1761943800626,2.65020221,109960.0,109950.0,0.0573128]
[1761943800839,2.20768461,109960.0,109950.0,0.0573128]
[1761943801043,2.22328461,109960.0,109950.0,0.0573128]
[1761943801254,2.65020221,109960.0,109950.0,0.0573128]
[1761943801502,2.66789221,109960.0,109950.0,0.0297128]
[1761943802316,3.09480981,109960.0,109950.0,0.0297128]
[1761943804700,3.10908236,109960.0,109950.0,0.0297128]
[1761943804930,3.1287448,109960.0,109950.0,0.0297128]
[1761943805799,3.19686951,109960.0,109950.0,0.0297128]
[1761943806013,3.53686951,109960.0,109950.0,0.0297128]
[1761943806256,3.55393849,109960.0,109950.0,0.0297128]
[1761943807359,0.18196706,109910.0,109900.0,0.07666165]
[1761943807580,2.18198362,109900.0,109890.0,0.01293937]
[1761943807804,3.40910882,109900.0,109890.0,0.00126937]
[1761943808025,2.18200018,109890.0,109880.0,0.01167]
[1761943808246,2.63336778,109890.0,109880.0,0.0276]
[1761943808505,0.18201674,109880.0,109870.0,0.01167]
[1761943808721,0.60893434,109880.0,109870.0,0.03711187]
[1761943808937,0.4269176,109880.0,109870.0,0.05304187]
[1761943809147,0.60893434,109880.0,109870.0,0.05304187]
[1761943810933,0.62320996,109880.0,109870.0,0.05304187]
[1761943811143,0.62320996,109880.0,109870.0,0.05904187]
[1761943812926,0.62320996,109880.0,109870.0,0.08639719]
[1761943813172,0.01427562,109880.0,109870.0,0.08639719]
[1761943813385,0.01427562,109880.0,109870.0,0.17793456]
[1761943813602,0.01427562,109880.0,109870.0,0.8050888]
[1761943813811,0.01427562,109880.0,109870.0,0.78688547]
[1761943817782,0.01427562,109880.0,109870.0,0.35996787]
[1761943818002,0.01427562,109880.0,109870.0,0.78688547]
[1761943819119,0.22090236,109880.0,109870.0,0.03408187]
[1761943819343,1.07473756,109880.0,109870.0,0.01815187]
[1761943819564,0.66550996,109880.0,109870.0,0.00648187]
[1761943820046,1.09242756,109880.0,109870.0,0.00648187]
[1761943820281,1.09242756,109880.0,109870.0,0.00048187]
[1761943820501,0.64781996,109880.0,109870.0,0.02729187]
[1761943820722,0.64881996,109880.0,109870.0,0.02829187]
[1761943821155,0.22190236,109880.0,109870.0,0.02829187]
[1761943822454,0.19729236,109880.0,109870.0,0.05192187]
[1761943823100,0.01527562,109880.0,109870.0,0.05192187]
[1761943823321,0.01527562,109880.0,109870.0,0.14345924]
[1761943823533,0.19729236,109880.0,109870.0,0.14345924]
[1761943827482,0.01527562,109880.0,109870.0,0.14345924]
[1761943827954,0.19729236,109880.0,109870.0,0.14345924]
[1761943828309,0.18301674,109880.0,109870.0,0.05192187]
[1761943829423,0.19877674,109880.0,109870.0,0.05192187]
[1761943829626,0.19877674,109880.0,109870.0,0.02829187]
[1761943829839,0.62623207,109880.0,109870.0,0.00148187]
[1761943830093,2.98392207,109880.0,109870.0,0.00148187]
[1761943833198,3.00349889,109880.0,109870.0,0.00148187]
[1761943833604,2.57604356,109880.0,109870.0,0.00148187]
[1761943833817,3.00349889,109880.0,109870.0,0.00148187]
[1761943834442,3.02900802,109880.0,109870.0,0.00148187]
[1761943835331,3.03100802,109880.0,109870.0,0.00148187]
[1761943835546,3.11882703,109880.0,109870.0,0.00148187]
[1761943835970,3.12082703,109880.0,109870.0,0.00148187]
[1761943836418,3.15161307,109880.0,109870.0,0.00148187]
[1761943836840,3.15361307,109880.0,109870.0,0.00148187]
[1761943837060,2.52204988,109860.0,109850.0,0.00282157]
[1761943837295,3.5384755,109860.0,109850.0,0.00286978]
[1761943837527,3.59613052,109860.0,109850.0,0.00286978]
[1761943837800,3.61382052,109860.0,109850.0,0.00286978]
[1761943838034,3.6319101,109860.0,109850.0,0.00286978]
[1761943838271,3.54592307,109860.0,109850.0,0.00286978]
[1761943838494,3.11846774,109860.0,109850.0,0.00286978]
[1761943838943,3.12646774,109860.0,109850.0,0.00286978]
[1761943839192,3.12446774,109860.0,109850.0,0.00286978]
[1761943839441,3.55092307,109860.0,109850.0,0.00286978]
[1761943839668,3.64274208,109860.0,109850.0,0.00286978]
[1761943839897,2.78783142,109860.0,109850.0,0.00286978]
[1761943840131,2.78783142,109860.0,109790.0,0.1787493]
[1761943840132,0.18211619,109820.0,109790.0,0.1787493]
[1761943840393,0.60957152,109820.0,109790.0,0.2007599]
[1761943840628,0.20702619,109820.0,109790.0,0.17889393]
[1761943840848,0.34,109820.0,109810.0,0.01521]
[1761943841081,0.34,109820.0,109810.0,0.02681]
[1761943841301,0.53787619,109820.0,109810.0,0.02681]